fUST/lending_fUST_20240826
["ID","MTS","AMOUNT","RATE_DAILY","PERIOD"]
[335954977,1724640653643,-470.29,0.00012933,2]
[335954979,1724640653653,-500.0,0.00012933,2]
[335954982,1724640653665,-500.0,0.00012933,2]
[335954984,1724640653676,-500.0,0.00012933,2]
[335954986,1724640653686,-500.0,0.00012933,2]
[335954988,1724640653697,-500.0,0.00012933,2]
[335954990,1724640653709,-500.0,0.00012933,2]
[335954992,1724640653720,-500.0,0.00012933,2]
[335954994,1724640653730,-500.0,0.00012933,2]
[335954997,1724640653741,-500.0,0.00012933,2]
[335954999,1724640653751,-500.0,0.00012933,2]
[335955001,1724640653761,-500.0,0.00012933,2]
[335955003,1724640653770,-500.0,0.00012933,2]
[335955005,1724640653779,-500.0,0.00012933,2]
[335955007,1724640653789,-500.0,0.00012933,2]
[335955009,1724640653799,-500.0,0.00012933,2]
[335955011,1724640653809,-500.0,0.00012933,2]
[335955013,1724640653819,-500.0,0.00012933,2]
[335955015,1724640653828,-500.0,0.00012933,2]
[335955017,1724640653838,-500.0,0.00012933,2]
[335955019,1724640653848,-500.0,0.00012933,2]
[335955021,1724640653858,-500.0,0.00012933,2]
[335955023,1724640653867,-500.0,0.00012933,2]
[335955025,1724640653876,-500.0,0.00012933,2]
[335955027,1724640653887,-326.22,0.00012933,2]
[335955029,1724640653897,-500.0,0.00012933,2]
[335955031,1724640653907,-413.9747362,0.00012934,2]
[335955033,1724640653918,-422.61635359,0.00012934,2]
[335955035,1724640653928,-154.74467129,0.00012934,2]
[335955036,1724640653938,-500.0,0.00012941,2]
[335955037,1724640653948,-686.14,0.00012941,2]
[335955038,1724640653958,-776.24,0.00012941,2]
[335955039,1724640653967,-500.0,0.00012941,2]
[335955040,1724640653977,-500.0,0.00012941,2]
[335955041,1724640653988,-506.63,0.00012941,2]
[335955042,1724640653998,-482.91889987,0.00012941,2]
[335955043,1724640654007,-500.0,0.00012941,2]
[335955044,1724640654017,-500.0,0.00012941,2]
[335955045,1724640654027,-500.0,0.00012941,2]
[335955046,1724640654037,-570.27,0.00012941,2]
[335955048,1724640654046,-500.0,0.00012941,2]
[335955050,1724640654056,-500.0,0.00012941,2]
[335955052,1724640654066,-618.29,0.00012941,2]
[335955054,1724640654079,-1655.19,0.00012941,2]
[335955057,1724640654096,-500.0,0.00012941,2]
[335955059,1724640654106,-500.0,0.00012941,2]
[335955061,1724640654116,-500.0,0.00012941,2]
[335955063,1724640654126,-632.59,0.00012941,2]
[335955065,1724640654135,-500.0,0.00012941,2]
[335955067,1724640654145,-500.0,0.00012941,2]
[335955069,1724640654155,-500.0,0.00012941,2]
[335955071,1724640654165,-500.0,0.00012941,2]
[335955073,1724640654175,-500.0,0.00012941,2]
[335955075,1724640654184,-4301.98,0.00012941,2]
[335955077,1724640654194,-511.71,0.00012941,2]
[335955079,1724640654204,-500.0,0.00012941,2]
[335955081,1724640654216,-500.0,0.00012941,2]
[335955084,1724640654226,-662.88,0.00012941,2]
[335955086,1724640654235,-692.53,0.00012941,2]
[335955088,1724640654245,-500.0,0.00012941,2]
[335955090,1724640654255,-647.23,0.00012941,2]
[335955092,1724640654264,-500.0,0.00012941,2]
[335955094,1724640654274,-3404.72,0.00012941,2]
[335955096,1724640654283,-500.0,0.00012941,2]
[335955098,1724640654293,-960.65,0.00012941,2]
[335955100,1724640654303,-500.0,0.00012941,2]
[335955102,1724640654312,-500.0,0.00012941,2]
[335955104,1724640654323,-500.0,0.00012941,2]
[335955106,1724640654334,-500.0,0.00012941,2]
[335955108,1724640654344,-500.0,0.00012941,2]
[335955110,1724640654353,-697.2,0.00012941,2]
[335955112,1724640654363,-500.0,0.00012941,2]
[335955114,1724640654372,-500.0,0.00012941,2]
[335955116,1724640654382,-500.0,0.00012941,2]
[335955118,1724640654391,-775.62,0.00012941,2]
[335955120,1724640654401,-500.0,0.00012941,2]
[335955122,1724640654410,-500.0,0.00012941,2]
[335955124,1724640654419,-551.64,0.00012941,2]
[335955126,1724640654429,-500.0,0.00012941,2]
[335955128,1724640654438,-599.38,0.00012941,2]
[335955130,1724640654448,-500.0,0.00012941,2]
[335955132,1724640654458,-843.23,0.00012941,2]
[335955134,1724640654467,-500.0,0.00012941,2]
[335955136,1724640654476,-572.86,0.00012941,2]
[335955138,1724640654486,-500.0,0.00012941,2]
[335955140,1724640654495,-500.0,0.00012941,2]
[335955142,1724640654505,-500.0,0.00012941,2]
[335955144,1724640654515,-500.0,0.00012941,2]
[335955146,1724640654524,-500.0,0.00012941,2]
[335955148,1724640654533,-500.0,0.00012941,2]
[335955150,1724640654542,-553.39,0.00012941,2]
[335955152,1724640654552,-493.69395889,0.00012971,2]
[335955154,1724640654561,-154.84695067,0.00012971,2]
[335955156,1724640654571,-818.13880886,0.00012971,2]
[335955158,1724640654581,-154.74467129,0.00012971,2]
[335955160,1724640654594,-500.0,0.00012973,2]
[335955162,1724640654604,-504.03055727,0.00012973,2]
[335955164,1724640654613,-500.0,0.00012973,2]
[335955166,1724640654623,-500.0,0.00012973,2]
[335955168,1724640654632,-500.0,0.00012973,2]
[335955170,1724640654643,-504.8239173,0.00012973,2]
[335955172,1724640654652,-154.74467129,0.00012985,2]
[335955174,1724640654661,-160.55819229,0.00012985,2]
[335955176,1724640654672,-307.1259294,0.00012986,2]
[335955178,1724640654681,-209.655413,0.00012986,2]
[335955180,1724640654690,-733.28,0.00012989,2]
[335955182,1724640654700,-500.0,0.00012989,2]
[335955184,1724640654709,-960.77,0.00012989,2]
[335955186,1724640654719,-154.74467129,0.00012991,2]
[335955188,1724640654728,-41142.93377504,0.00012999,2]
[335955225,1724640655103,-254.63533274,0.00012999,2]
[335955276,1724640655593,-512.37431689,0.00012891,2]
[335955278,1724640655604,-49.25568311,0.00012891,2]
[335955280,1724640655614,-424.99604957,0.00012973,2]
[335955282,1724640655626,-75.00395043,0.00012973,2]
[335955284,1724640655637,-523.01662687,0.00012999,2]
[335955286,1724640655648,-65797.6647149,0.00012999,2]
[335955310,1724640656046,-500.0,0.00012119,2]
[335955311,1724640656056,-500.0,0.00012119,2]
[335955312,1724640656065,-500.0,0.00012393,2]
[335955313,1724640656077,-899.44474491,0.00012782,2]
[335955314,1724640656087,-3629.95391365,0.00012999,2]
[335955315,1724640656098,-378.8001693,0.00012999,2]
[335955345,1724640656575,-598.31,0.00012119,2]
[335955346,1724640656585,-422.61635359,0.00012934,2]
[335955347,1724640656598,-154.74467129,0.00012989,2]
[335955348,1724640656607,-20798.98724134,0.00012999,2]
[335955349,1724640656619,-5286.86822616,0.00012999,2]
[335955350,1724640656629,-2601.14383219,0.00012999,2]
[335955351,1724640656638,-730.68505647,0.00012999,2]
[335955352,1724640656648,-695.28989851,0.00012999,2]
[335955353,1724640656657,-863.03675999,0.00013,2]
[335955354,1724640656669,-646.94290656,0.00013,2]
[335955355,1724640656679,-913.81546613,0.00013,2]
[335955356,1724640656691,-150.112233,0.00013,2]
[335955357,1724640656700,-521.74792488,0.00013025,2]
[335955358,1724640656710,-200.0,0.00013025,2]
[335955359,1724640656719,-154.98192112,0.00013025,2]
[335955360,1724640656730,-304.41142165,0.00013025,2]
[335955361,1724640656739,-627.85788953,0.00013025,2]
[335955362,1724640656748,-180.454528,0.00013025,2]
[335955363,1724640656759,-181.24286655,0.00013025,2]
[335955364,1724640656769,-196.8145702,0.00013025,2]
[335955365,1724640656778,-154.85810047,0.00013025,2]
[335955366,1724640656788,-154.74467129,0.00013025,2]
[335955367,1724640656798,-155.53568797,0.00013025,2]
[335955368,1724640656808,-327.44940029,0.00013042,2]
[335955369,1724640656817,-500.0,0.00013042,2]
[335955370,1724640656828,-500.0,0.00013042,2]
[335955371,1724640656838,-404.72731861,0.00013051,2]
[335955372,1724640656848,-155.34423056,0.00013051,2]
[335955373,1724640656858,-1614.5867324,0.00013051,2]
[335955374,1724640656868,-160.9660504,0.00013051,2]
[335955375,1724640656880,-174.9614213,0.00013051,2]
[335955376,1724640656891,-157.21069484,0.00013051,2]
[335955377,1724640656901,-376.2246508,0.00013051,2]
[335955378,1724640656911,-306.91405355,0.00013051,2]
[335955379,1724640656922,-1614.5867324,0.00013051,2]
[335955380,1724640656932,-154.93672942,0.00013051,2]
[335955381,1724640656942,-183.07990809,0.00013051,2]
[335955382,1724640656953,-195.69181628,0.00013051,2]
[335955383,1724640656964,-155.26939044,0.00013051,2]
[335955384,1724640656975,-155.07432915,0.00013051,2]
[335955385,1724640656987,-954.89,0.00013065,2]
[335955386,1724640656998,-8755.74,0.00013065,2]
[335955387,1724640657009,-500.0,0.00013065,2]
[335955388,1724640657020,-500.0,0.00013065,2]
[335955389,1724640657030,-761.34,0.00013065,2]
[335955390,1724640657040,-1029.8,0.00013065,2]
[335955391,1724640657050,-497.53983266,0.00013065,2]
[335955392,1724640657060,-12796.68844606,0.00013065,2]
[335955393,1724640657097,-17.74155394,0.00013065,2]
[335955394,1724640657121,-585.98,0.00013065,2]
[335955395,1724640657146,-655.75,0.00013065,2]
[335955396,1724640657172,-649.14,0.00013065,2]
[335955397,1724640657198,-13009.91,0.00013074,2]
[335955398,1724640657225,-3450.6,0.00013074,2]
[335955399,1724640657252,-500.0,0.00013074,2]
[335955400,1724640657278,-500.0,0.00013074,2]
[335955401,1724640657302,-1580.23,0.00013074,2]
[335955402,1724640657329,-502.24,0.00013074,2]
[335955403,1724640657357,-35134.72,0.00013074,2]
[335955404,1724640657383,-862.65,0.00013074,2]
[335955405,1724640657410,-1949.94,0.00013074,2]
[335955406,1724640657436,-8906.40199825,0.00013145,2]
[335955407,1724640657464,-500.0,0.00013165,2]
[335955408,1724640657488,-700.99,0.00013165,2]
[335955409,1724640657516,-518.89,0.00013165,2]
[335955410,1724640657542,-500.0,0.00013165,2]
[335955411,1724640657568,-500.0,0.00013165,2]
[335955412,1724640657596,-500.0,0.00013165,2]
[335955413,1724640657620,-500.0,0.00013165,2]
[335955414,1724640657644,-983.25,0.00013165,2]
[335955415,1724640657670,-1039.62,0.00013165,2]
[335955416,1724640657694,-593.76,0.00013165,2]
[335955417,1724640657718,-737.81,0.00013165,2]
[335955418,1724640657742,-786.91,0.00013165,2]
[335955419,1724640657768,-865.08,0.00013165,2]
[335955420,1724640657792,-584.62,0.00013165,2]
[335955421,1724640657816,-656.34,0.00013165,2]
[335955422,1724640657843,-866.04,0.00013165,2]
[335955423,1724640657868,-1005.34,0.00013165,2]
[335955424,1724640657893,-500.0,0.00013165,2]
[335955425,1724640657920,-500.0,0.00013165,2]
[335955426,1724640657946,-506.37,0.00013165,2]
[335955427,1724640657973,-1236.7,0.00013165,2]
[335955428,1724640657999,-666.16,0.00013165,2]
[335955429,1724640658023,-1141.69,0.00013165,2]
[335955430,1724640658048,-500.0,0.00013165,2]
[335955431,1724640658072,-535.59,0.00013165,2]
[335955432,1724640658096,-500.0,0.00013165,2]
[335955433,1724640658120,-733.02,0.00013165,2]
[335955434,1724640658143,-500.0,0.00013165,2]
[335955435,1724640658167,-591.89,0.00013165,2]
[335955436,1724640658192,-500.0,0.00013165,2]
[335955437,1724640658219,-895.73,0.00013165,2]
[335955438,1724640658245,-500.0,0.00013165,2]
[335955439,1724640658270,-694.43,0.00013165,2]
[335955440,1724640658296,-500.0,0.00013165,2]
[335955441,1724640658322,-1028.32,0.00013165,2]
[335955442,1724640658348,-500.0,0.00013165,2]
[335955443,1724640658374,-1593.52,0.00013165,2]
[335955444,1724640658400,-500.0,0.00013165,2]
[335955445,1724640658426,-540.73,0.00013165,2]
[335955446,1724640658451,-612.66,0.00013165,2]
[335955447,1724640658476,-500.0,0.00013165,2]
[335955448,1724640658500,-560.20579319,0.00013165,2]
[335955449,1724640658524,-500.0,0.00013165,2]
[335955450,1724640658550,-2698.64,0.00013165,2]
[335955451,1724640658574,-884.38,0.00013165,2]
[335955452,1724640658601,-890.13,0.00013165,2]
[335955453,1724640658625,-500.0,0.00013165,2]
[335955454,1724640658651,-500.0,0.00013165,2]
[335955455,1724640658677,-774.24,0.00013165,2]
[335955456,1724640658701,-567.1546515,0.00013165,2]
[335955457,1724640658725,-500.0,0.00013165,2]
[335955458,1724640658749,-1054.16,0.00013165,2]
[335955459,1724640658774,-889.98,0.00013165,2]
[335955460,1724640658798,-857.77,0.00013165,2]
[335955461,1724640658823,-500.0,0.00013165,2]
[335955462,1724640658853,-748.47,0.00013165,2]
[335955463,1724640658879,-741.35,0.00013165,2]
[335955464,1724640658905,-1278.41,0.00013165,2]
[335955465,1724640658929,-726.55,0.00013165,2]
[335955466,1724640658952,-500.0,0.00013165,2]
[335955467,1724640658976,-613.01,0.00013165,2]
[335955468,1724640659002,-1008.3,0.00013165,2]
[335955469,1724640659026,-849.52,0.00013165,2]
[335955470,1724640659052,-4321.45,0.00013165,2]
[335955471,1724640659076,-720.11,0.00013165,2]
[335955472,1724640659101,-500.0,0.00013165,2]
[335955473,1724640659125,-652.94,0.00013165,2]
[335955474,1724640659151,-920.16,0.00013165,2]
[335955475,1724640659179,-500.0,0.00013165,2]
[335955476,1724640659204,-500.0,0.00013165,2]
[335955477,1724640659228,-909.57,0.00013165,2]
[335955478,1724640659254,-500.0,0.00013165,2]
[335955479,1724640659278,-1317.85,0.00013165,2]
[335955480,1724640659304,-539.41,0.00013165,2]
[335955481,1724640659342,-255.08135689,0.00013165,2]
[335955482,1724640659367,-679.29,0.00013165,2]
[335955483,1724640659572,-507.02447176,0.00013165,2]
[335955484,1724640659614,-1085.37,0.00013165,2]
[335955485,1724640659640,-649.76,0.00013165,2]
[335955486,1724640659666,-744.28,0.00013165,2]
[335955487,1724640659690,-686.57,0.00013165,2]
[335955488,1724640659714,-1223.5,0.00013165,2]
[335955489,1724640659739,-902.06,0.00013165,2]
[335955490,1724640659765,-11464.02,0.00013165,2]
[335955491,1724640659788,-560.45,0.00013165,2]
[335955492,1724640659813,-2434.27,0.00013165,2]
[335955493,1724640659838,-500.0,0.00013165,2]
[335955494,1724640659864,-852.74,0.00013165,2]
[335955495,1724640659889,-500.0,0.00013165,2]
[335955496,1724640659913,-6358.83,0.00013165,2]
[335955497,1724640659937,-561.63,0.00013165,2]
[335955498,1724640659962,-500.0,0.00013175,2]
[335955499,1724640659988,-500.0,0.00013175,2]
[335955500,1724640660014,-1289.61,0.00013175,2]
[335955501,1724640660038,-500.0,0.00013175,2]
[335955502,1724640660063,-500.0,0.00013176,2]
[335955503,1724640660089,-500.0,0.00013176,2]
[335955504,1724640660113,-500.0,0.00013176,2]
[335955505,1724640660139,-500.0,0.00013176,2]
[335955506,1724640660164,-500.0,0.00013176,2]
[335955507,1724640660190,-500.0,0.00013176,2]
[335955508,1724640660215,-500.0,0.00013176,2]
[335955509,1724640660240,-500.0,0.00013176,2]
[335955510,1724640660265,-500.0,0.00013176,2]
[335955511,1724640660290,-500.0,0.00013176,2]
[335955512,1724640660315,-500.0,0.00013176,2]
[335955513,1724640660340,-1205.01,0.00013176,2]
[335955514,1724640660365,-1133.59,0.00013176,2]
[335955515,1724640660390,-500.0,0.00013176,2]
[335955516,1724640660415,-325.7313032,0.00013176,2]
[335955517,1724640660440,-500.0,0.00013176,2]
[335955518,1724640660464,-705.54,0.00013176,2]
[335955519,1724640660489,-500.0,0.00013176,2]
[335955520,1724640660511,-500.0,0.00013176,2]
[335955521,1724640660535,-500.0,0.00013176,2]
[335955522,1724640660557,-640.7,0.00013176,2]
[335955523,1724640660580,-500.0,0.00013176,2]
[335955524,1724640660608,-1373.17,0.00013176,2]
[335955525,1724640660632,-500.0,0.00013176,2]
[335955526,1724640660655,-717.05,0.00013176,2]
[335955527,1724640660679,-1323.13,0.00013176,2]
[335955528,1724640660702,-500.0,0.00013176,2]
[335955529,1724640660726,-500.0,0.00013176,2]
[335955530,1724640660748,-595.98,0.00013176,2]
[335955531,1724640660772,-500.0,0.00013176,2]
[335955532,1724640660794,-742.96,0.00013176,2]
[335955533,1724640660817,-547.15,0.00013176,2]
[335955534,1724640660840,-500.0,0.00013176,2]
[335955535,1724640660863,-600.36,0.00013176,2]
[335955536,1724640660887,-500.0,0.00013176,2]
[335955537,1724640660911,-500.0,0.00013176,2]
[335955538,1724640660936,-500.0,0.00013176,2]
[335955539,1724640660959,-645.72,0.00013176,2]
[335955540,1724640660982,-500.0,0.00013176,2]
[335955541,1724640661004,-500.0,0.00013176,2]
[335955542,1724640661028,-500.0,0.00013176,2]
[335955543,1724640661051,-666.42,0.00013176,2]
[335955544,1724640661075,-500.0,0.00013176,2]
[335955545,1724640661097,-525.74,0.00013176,2]
[335955546,1724640661120,-500.0,0.00013176,2]
[335955547,1724640661142,-500.0,0.00013176,2]
[335955548,1724640661167,-500.0,0.00013176,2]
[335955549,1724640661191,-500.0,0.00013176,2]
[335955550,1724640661214,-671.72,0.00013176,2]
[335955551,1724640661236,-500.0,0.00013176,2]
[335955552,1724640661258,-607.31,0.00013176,2]
[335955553,1724640661282,-592.18,0.00013176,2]
[335955554,1724640661304,-850.14,0.00013176,2]
[335955555,1724640661329,-534.85,0.00013176,2]
[335955556,1724640661355,-618.41793336,0.00013176,2]
[335955557,1724640661379,-500.0,0.00013176,2]
[335955558,1724640661405,-500.0,0.00013176,2]
[335955559,1724640661429,-559.87,0.00013176,2]
[335955560,1724640661454,-810.17,0.00013176,2]
[335955561,1724640661477,-511.74,0.00013176,2]
[335955562,1724640661500,-500.0,0.00013176,2]
[335955563,1724640661524,-584.09,0.00013176,2]
[335955564,1724640661548,-500.0,0.00013176,2]
[335955565,1724640661571,-500.0,0.00013176,2]
[335955566,1724640661599,-500.0,0.00013176,2]
[335955567,1724640661623,-730.43,0.00013176,2]
[335955568,1724640661648,-500.0,0.00013176,2]
[335955569,1724640661674,-617.46,0.00013176,2]
[335955570,1724640661697,-500.0,0.00013176,2]
[335955571,1724640661723,-785.83,0.00013176,2]
[335955572,1724640661747,-500.0,0.00013176,2]
[335955573,1724640661772,-500.0,0.00013176,2]
[335955574,1724640661798,-536.21,0.00013176,2]
[335955575,1724640661823,-500.0,0.00013176,2]
[335955576,1724640661848,-505.25,0.00013176,2]
[335955577,1724640661871,-500.0,0.00013176,2]
[335955578,1724640661904,-500.0,0.00013176,2]
[335955579,1724640661939,-543.48,0.00013176,2]
[335955580,1724640661967,-500.0,0.00013176,2]
[335955581,1724640661998,-500.0,0.00013176,2]
[335955582,1724640662038,-1250.75,0.00013176,2]
[335955583,1724640662071,-225.59524076,0.00013176,2]
[335955584,1724640662105,-500.0,0.00013176,2]
[335955585,1724640662137,-500.0,0.00013176,2]
[335955586,1724640662170,-500.0,0.00013176,2]
[335955587,1724640662202,-1115.71,0.00013176,2]
[335955588,1724640662228,-1151.62,0.00013176,2]
[335955589,1724640662258,-500.0,0.00013176,2]
[335955590,1724640662290,-907.33,0.00013176,2]
[335955591,1724640662322,-1353.18,0.00013176,2]
[335955592,1724640662357,-851.97,0.00013176,2]
[335955593,1724640662385,-500.0,0.00013176,2]
[335955594,1724640662413,-687.62,0.00013176,2]
[335955595,1724640662443,-1170.73,0.00013176,2]
[335955596,1724640662472,-500.0,0.00013176,2]
[335955597,1724640662503,-500.0,0.00013176,2]
[335955598,1724640662534,-500.0,0.00013176,2]
[335955599,1724640662561,-500.0,0.00013176,2]
[335955600,1724640662593,-561.59,0.00013176,2]
[335955601,1724640662626,-991.78,0.00013176,2]
[335955602,1724640662655,-574.88,0.00013176,2]
[335955603,1724640662685,-515.49504094,0.00013176,2]
[335955604,1724640662718,-500.0,0.00013176,2]
[335955605,1724640662747,-500.0,0.00013176,2]
[335955606,1724640662776,-771.78,0.00013176,2]
[335955607,1724640662805,-500.0,0.00013176,2]
[335955608,1724640662835,-500.0,0.00013176,2]
[335955609,1724640662866,-500.0,0.00013176,2]
[335955610,1724640662894,-500.0,0.00013176,2]
[335955611,1724640662924,-578.48,0.00013176,2]
[335955612,1724640662953,-1088.86,0.00013176,2]
[335955613,1724640662981,-506.19,0.00013176,2]
[335955614,1724640663009,-737.97,0.00013176,2]
[335955615,1724640663040,-1176.38,0.00013176,2]
[335955616,1724640663070,-500.0,0.00013176,2]
[335955617,1724640663101,-500.0,0.00013176,2]
[335955618,1724640663132,-936.79,0.00013176,2]
[335955619,1724640663161,-500.0,0.00013176,2]
[335955620,1724640663189,-500.0,0.00013176,2]
[335955621,1724640663216,-500.0,0.00013176,2]
[335955622,1724640663244,-500.0,0.00013176,2]
[335955623,1724640663273,-500.0,0.00013176,2]
[335955624,1724640663306,-602.94,0.00013176,2]
[335955625,1724640663339,-500.0,0.00013176,2]
[335955626,1724640663368,-500.0,0.00013176,2]
[335955627,1724640663398,-920.95,0.00013176,2]
[335955628,1724640663429,-615.23,0.00013176,2]
[335955629,1724640663460,-728.78,0.00013176,2]
[335955630,1724640663490,-797.85,0.00013176,2]
[335955631,1724640663519,-641.74,0.00013176,2]
[335955632,1724640663549,-573.14,0.00013176,2]
[335955633,1724640663579,-592.77,0.00013176,2]
[335955634,1724640663613,-500.0,0.00013176,2]
[335955635,1724640663645,-500.0,0.00013176,2]
[335955636,1724640663675,-852.86,0.00013176,2]
[335955637,1724640663703,-500.0,0.00013176,2]
[335955638,1724640663732,-500.0,0.00013176,2]
[335955639,1724640663760,-500.0,0.00013176,2]
[335955640,1724640663788,-500.0,0.00013176,2]
[335955641,1724640663816,-1308.43,0.00013176,2]
[335955642,1724640663846,-500.0,0.00013176,2]
[335955643,1724640663875,-500.0,0.00013176,2]
[335955644,1724640663903,-701.22,0.00013176,2]
[335955645,1724640663931,-665.02,0.00013176,2]
[335955646,1724640663961,-500.0,0.00013176,2]
[335955647,1724640663990,-1193.1,0.00013176,2]
[335955648,1724640664018,-772.23,0.00013176,2]
[335955649,1724640664047,-1291.88,0.00013176,2]
[335955650,1724640664076,-893.77,0.00013176,2]
[335955651,1724640664105,-798.59,0.00013176,2]
[335955652,1724640664134,-941.68,0.00013176,2]
[335955653,1724640664163,-500.0,0.00013176,2]
[335955654,1724640664190,-1048.32,0.00013176,2]
[335955655,1724640664218,-530.99,0.00013176,2]
[335955656,1724640664245,-500.0,0.00013176,2]
[335955657,1724640664272,-500.0,0.00013176,2]
[335955658,1724640664301,-574.94,0.00013176,2]
[335955659,1724640664324,-500.0,0.00013176,2]
[335955660,1724640664356,-902.93,0.00013176,2]
[335955661,1724640664380,-728.66,0.00013176,2]
[335955662,1724640664405,-891.93,0.00013176,2]
[335955663,1724640664430,-645.97,0.00013176,2]
[335955664,1724640664455,-500.0,0.00013176,2]
[335955665,1724640664479,-761.44,0.00013176,2]
[335955666,1724640664503,-500.0,0.00013176,2]
[335955667,1724640664528,-585.88,0.00013176,2]
[335955668,1724640664553,-500.0,0.00013176,2]
[335955669,1724640664577,-1374.05,0.00013176,2]
[335955670,1724640664606,-596.15,0.00013176,2]
[335955671,1724640664631,-500.0,0.00013176,2]
[335955672,1724640664657,-743.9,0.00013176,2]
[335955673,1724640664684,-702.68,0.00013176,2]
[335955674,1724640665058,-873.72,0.00013176,2]
[335955675,1724640665113,-744.27,0.00013176,2]
[335955676,1724640665139,-1181.0,0.00013176,2]
[335955677,1724640665164,-500.0,0.00013176,2]
[335955678,1724640665188,-552.29,0.00013176,2]
[335955679,1724640665211,-1010.49,0.00013176,2]
[335955680,1724640665234,-747.11,0.00013176,2]
[335955681,1724640665257,-877.22,0.00013176,2]
[335955682,1724640665280,-781.99,0.00013176,2]
[335955683,1724640665304,-500.0,0.00013187,2]
[335955684,1724640665327,-500.0,0.00013187,2]
[335955685,1724640665353,-500.0,0.00013197,2]
[335955686,1724640665378,-231.57606953,0.00013197,2]
[335955687,1724640665401,-500.0,0.00013197,2]
[335955688,1724640665426,-500.0,0.00013197,2]
[335955689,1724640665451,-500.0,0.00013197,2]
[335955690,1724640665476,-500.0,0.00013197,2]
[335955691,1724640665499,-500.0,0.00013197,2]
[335955692,1724640665524,-500.0,0.00013215,2]
[335955693,1724640665547,-686.14,0.00013215,2]
[335955694,1724640665571,-776.24,0.00013215,2]
[335955695,1724640665600,-500.0,0.00013215,2]
[335955696,1724640665623,-500.0,0.00013215,2]
[335955697,1724640665648,-506.63,0.00013215,2]
[335955698,1724640665671,-500.0,0.00013215,2]
[335955699,1724640665697,-500.0,0.00013215,2]
[335955700,1724640665725,-500.0,0.00013215,2]
[335955701,1724640665749,-570.27,0.00013215,2]
[335955702,1724640665773,-500.0,0.00013215,2]
[335955703,1724640665797,-500.0,0.00013215,2]
[335955704,1724640665821,-618.29,0.00013215,2]
[335955705,1724640665844,-1655.19,0.00013215,2]
[335955706,1724640665868,-500.0,0.00013215,2]
[335955707,1724640665892,-500.0,0.00013215,2]
[335955708,1724640665915,-500.0,0.00013215,2]
[335955709,1724640665937,-632.59,0.00013215,2]
[335955710,1724640665962,-500.0,0.00013215,2]
[335955711,1724640665987,-595.4498603,0.00013215,2]
[335955712,1724640666013,-500.0,0.00013215,2]
[335955713,1724640666036,-500.0,0.00013215,2]
[335955714,1724640666062,-500.0,0.00013215,2]
[335955715,1724640666087,-4301.98,0.00013215,2]
[335955716,1724640666112,-511.71,0.00013215,2]
[335955717,1724640666138,-404.00471073,0.00013215,2]
[335955718,1724640666164,-500.0,0.00013215,2]
[335955719,1724640666187,-662.88,0.00013215,2]
[335955720,1724640666211,-692.53,0.00013215,2]
[335955721,1724640666234,-500.0,0.00013215,2]